bitfinex/quotes_BTCUSD_20250313
["timestamp","ask_amount","ask_price","bid_price","bid_amount"]
[1741886894781,0.248676,80426.0,80420.0,0.012434]
[1741886895246,0.3,80436.0,80432.0,0.012432]
[1741886895443,0.249654,80434.0,80423.0,0.248682]
[1741886895621,0.248684,80424.0,80417.0,0.012435]
[1741886895825,0.248684,80424.0,80416.0,0.248706]
[1741886895826,0.248677,80426.0,80412.0,0.11970099]
[1741886895975,0.31454085,80436.0,80397.0,0.012438]
[1741886895976,0.012436,80411.0,80397.0,0.012438]
[1741886896174,0.012435,80414.0,80383.0,0.7894]
[1741886896175,0.248734,80408.0,80398.0,0.012438]
[1741886896436,0.248734,80408.0,80395.0,0.012438]
[1741886896638,0.248734,80408.0,80397.0,0.012438]
[1741886896776,0.248734,80408.0,80398.0,0.261197]
[1741886896984,0.01454085,80419.0,80412.0,0.012435]
[1741886897187,0.01454085,80419.0,80402.0,0.012437]
[1741886897188,0.248721,80412.0,80402.0,0.012437]
[1741886897396,0.248732,80408.0,80396.0,0.012438]
[1741886897626,0.248732,80408.0,80398.0,0.248761]
[1741886897803,0.248732,80408.0,80399.0,0.012437]
[1741886898918,0.248732,80408.0,80406.0,0.0023376]
[1741886899115,0.248732,80408.0,80406.0,0.0033376]
[1741886899317,0.3,80417.0,80407.0,0.012436]
[1741886899520,0.46316,80417.0,80406.0,0.0043376]
[1741886899763,0.248734,80407.0,80406.0,0.0033376]
[1741886900212,0.27571085,80407.0,80406.0,0.0033376]
[1741886900418,0.248716,80414.0,80406.0,0.2520746]
[1741886900624,0.0477,80434.0,80419.0,0.012434]
[1741886900830,0.37575826,80440.0,80425.0,0.26111]
[1741886900831,0.248641,80437.0,80425.0,0.26111]
[1741886901019,0.248641,80437.0,80407.0,0.11970099]
[1741886901020,0.248615,80446.0,80437.0,0.012432]
[1741886901226,0.24863,80441.0,80433.0,0.012432]
[1741886901440,0.248641,80437.0,80431.0,0.012433]
[1741886901612,0.248638,80438.0,80432.0,0.248657]
[1741886901818,0.248632,80440.0,80434.0,0.012432]
[1741886902058,0.01278288,80441.0,80432.0,0.248657]
[1741886902059,0.248638,80438.0,80432.0,0.248657]
[1741886902268,0.248647,80435.0,80425.0,0.012433]
[1741886902492,0.248647,80435.0,80400.0,0.40117978]
[1741886902493,0.248679,80425.0,80419.0,0.261129]
[1741886902694,0.248679,80425.0,80420.0,0.012434]
[1741886903035,0.248666,80429.0,80423.0,0.012434]
[1741886903646,0.248669,80429.0,80423.0,0.261119]
[1741886903846,0.248663,80430.0,80424.0,0.012434]
[1741886904047,0.248663,80430.0,80425.0,0.248678]
[1741886904248,0.01454085,80438.0,80425.0,0.012433]
[1741886904447,0.248632,80441.0,80432.0,0.012432]
[1741886904653,0.248653,80434.0,80425.0,0.261111]
[1741886904853,0.248641,80437.0,80430.0,0.248662]
[1741886905056,0.01454085,80443.0,80433.0,0.261083]
[1741886905312,0.26316385,80443.0,80432.0,0.248656]
[1741886905494,0.248644,80437.0,80431.0,0.012433]
[1741886905705,0.248626,80442.0,80436.0,0.012432]
[1741886905904,0.24865,80435.0,80429.0,0.261096]
[1741886906128,0.248656,80433.0,80427.0,0.261105]
[1741886906333,0.248629,80441.0,80430.0,0.012433]
[1741886906546,0.248636,80439.0,80435.0,0.012432]
[1741886906739,0.002,80443.0,80442.0,0.012431]
[1741886907141,0.002,80443.0,80439.0,0.261064]
[1741886907342,0.002,80443.0,80440.0,0.11970099]
[1741886907574,0.002,80443.0,80441.0,0.26106]
[1741886907721,0.002,80443.0,80441.0,0.38076099]
[1741886907925,0.248604,80450.0,80443.0,0.24862]
[1741886908104,0.01251114,80450.0,80441.0,0.11970099]
[1741886908305,0.248598,80451.0,80444.0,0.012431]
[1741886908530,0.248598,80451.0,80441.0,0.11970099]
[1741886908735,0.248598,80451.0,80443.0,0.012431]
[1741886908936,0.012428,80458.0,80441.0,0.11970099]
[1741886908937,0.248601,80450.0,80441.0,0.11970099]
[1741886909190,0.312428,80460.0,80447.0,0.01243]
[1741886909312,0.01250989,80450.0,80447.0,0.01143]
[1741886909564,0.248597,80452.0,80447.0,0.01143]
[1741886909767,0.248597,80452.0,80441.0,0.11970099]
[1741886909768,0.24862,80444.0,80441.0,0.11970099]
[1741886909968,0.01243,80450.0,80432.0,0.248655]
[1741886910172,0.01243,80445.0,80429.0,0.261096]
[1741886910375,0.012431,80442.0,80427.0,0.012433]
[1741886910744,0.012431,80442.0,80410.0,0.012436]
[1741886910745,0.248691,80421.0,80410.0,0.012436]
[1741886910943,0.248691,80421.0,80408.0,0.012436]
[1741886911142,0.248682,80424.0,80417.0,0.012435]
[1741886911353,0.248689,80422.0,80417.0,0.012435]
[1741886911755,0.3,80433.0,80424.0,0.248679]
[1741886911956,0.43597731,80450.0,80438.0,0.012431]
[1741886911957,0.075,80440.0,80438.0,0.012431]
[1741886912163,0.01371905,80450.0,80440.0,0.24863]
[1741886912400,0.01371905,80450.0,80439.0,0.012431]
[1741886912401,0.248617,80445.0,80439.0,0.012431]
[1741886912608,0.01371905,80450.0,80441.0,0.012431]
[1741886912822,0.248604,80449.0,80442.0,0.261057]
[1741886913240,0.248618,80445.0,80439.0,0.13213199]
[1741886913446,0.248611,80447.0,80440.0,0.012431]
[1741886913871,0.16364,80453.0,80450.0,0.248599]
[1741886914087,0.248599,80451.0,80444.0,0.261048]
[1741886914292,0.248599,80451.0,80444.0,0.261051]
[1741886914447,0.24861,80447.0,80441.0,0.261059]
[1741886914650,0.248597,80452.0,80445.0,0.248617]
[1741886914888,0.248615,80446.0,80439.0,0.11970099]
[1741886915099,0.248617,80445.0,80434.0,0.261083]
[1741886915427,0.248635,80439.0,80434.0,0.26108]
[1741886915659,0.248662,80431.0,80423.0,0.012434]
[1741886915893,0.012432,80435.0,80420.0,0.0127714]
[1741886916070,0.248675,80427.0,80420.0,0.0127714]
[1741886916242,0.24867,80428.0,80422.0,0.248688]
[1741886916408,0.01135986,80430.0,80424.0,0.261115]
[1741886916636,0.01135986,80430.0,80427.0,0.248672]
[1741886916835,0.01135986,80430.0,80427.0,0.012433]
[1741886917054,0.01135986,80430.0,80426.0,0.012433]
[1741886917280,0.01135986,80430.0,80429.0,0.261099]
[1741886917729,0.01135986,80430.0,80429.0,0.38079999]
[1741886917933,0.02274096,80430.0,80429.0,0.38079999]
[1741886918839,0.02274096,80430.0,80429.0,0.38579999]
[1741886919263,0.0001687,80452.0,80451.0,0.261027]
[1741886920523,0.02293692,80452.0,80451.0,0.261027]
[1741886920739,0.02293692,80452.0,80451.0,0.38072799]
[1741886920994,0.034316,80452.0,80451.0,0.38072799]
[1741886921376,0.034316,80452.0,80451.0,0.38372799]
[1741886921991,7.8e-07,80452.0,80451.0,0.38372799]
[1741886922215,7.8e-07,80452.0,80451.0,0.68372799]
[1741886922431,0.0001689,80473.0,80452.0,0.355]
[1741886922432,0.01946636,80470.0,80452.0,0.355]
[1741886922631,0.01946636,80470.0,80469.0,0.260969]
[1741886922834,0.0001689,80473.0,80472.0,0.260959]
[1741886923040,0.0001689,80473.0,80472.0,0.68065999]
[1741886923459,5e-07,80481.0,80480.0,0.610733]
[1741886923661,1e-07,80489.0,80488.0,0.260908]
[1741886923863,1e-07,80489.0,80488.0,0.38060899]
[1741886924278,1e-07,80489.0,80488.0,0.41586899]
[1741886924423,1e-07,80489.0,80488.0,0.7457251]
[1741886924668,1e-07,80489.0,80488.0,0.71586899]
[1741886924849,1e-07,80489.0,80488.0,0.7457251]
[1741886925047,1e-07,80489.0,80488.0,0.69260899]
[1741886925731,1e-07,80489.0,80488.0,0.68660899]
[1741886926539,1e-07,80489.0,80488.0,0.68060899]
[1741886926816,1e-07,80489.0,80488.0,0.68660899]
[1741886926971,1e-07,80489.0,80488.0,0.68060899]
[1741886927174,1e-07,80489.0,80488.0,0.68660899]
[1741886927490,1e-07,80489.0,80488.0,0.69260899]
[1741886927693,1e-07,80489.0,80488.0,0.68060899]
[1741886928094,1e-07,80489.0,80488.0,0.68660899]
[1741886928327,1e-07,80489.0,80488.0,0.68060899]
[1741886928506,1e-07,80489.0,80488.0,0.68660899]
[1741886929110,1e-07,80489.0,80488.0,0.69514984]
[1741886929338,1e-07,80489.0,80488.0,0.69548724]
[1741886929722,1e-07,80489.0,80488.0,0.70148724]
[1741886929925,1e-07,80489.0,80488.0,0.69548724]
[1741886930291,1e-07,80489.0,80488.0,0.70748724]
[1741886930788,1e-07,80489.0,80488.0,0.69548724]
[1741886930987,1e-07,80489.0,80488.0,0.70148724]
[1741886931628,1e-07,80489.0,80488.0,0.70748724]
[1741886931837,9e-07,80496.0,80495.0,0.260885]
[1741886932036,0.01273748,80528.0,80495.0,0.260885]
[1741886932037,0.0001689,80539.0,80529.0,0.260774]
[1741886932279,0.0001689,80539.0,80529.0,0.38047499]
[1741886933026,0.24833,80538.0,80526.0,0.260781]
[1741886933219,0.24833,80538.0,80529.0,0.012417]
[1741886933367,0.0033378,80530.0,80529.0,0.012417]
[1741886933749,0.0003378,80530.0,80529.0,0.012417]
[1741886934111,0.0003378,80530.0,80529.0,0.004]
[1741886934410,0.248357,80529.0,80523.0,0.012418]
[1741886934632,0.248357,80529.0,80523.0,0.13211899]
[1741886934838,0.248357,80529.0,80519.0,0.012419]
[1741886934839,0.248367,80526.0,80519.0,0.012419]
[1741886934988,0.0003378,80530.0,80529.0,0.004]
[1741886935194,0.2486928,80530.0,80529.0,0.004]
[1741886935413,0.0003378,80530.0,80529.0,0.38447499]
[1741886935623,0.0003378,80530.0,80529.0,0.12370099]
[1741886935830,0.2486918,80530.0,80529.0,0.004]
[1741886936183,0.2486918,80530.0,80529.0,0.006]
[1741886936513,0.2611088,80530.0,80529.0,0.006]
[1741886936788,0.2486918,80530.0,80529.0,0.006]
[1741886937188,0.2486918,80530.0,80529.0,0.002]
[1741886937386,0.2486918,80530.0,80519.0,0.260806]
[1741886937387,0.248369,80526.0,80520.0,0.012419]
[1741886937535,0.248372,80525.0,80523.0,0.003]
[1741886937985,0.248397,80516.0,80515.0,0.78896]
[1741886938189,0.012419,80517.0,80499.0,0.012422]
[1741886938401,0.01242,80515.0,80501.0,0.012422]
[1741886938641,0.16476,80519.0,80511.0,0.01242]
[1741886938884,0.248397,80517.0,80512.0,0.01242]
[1741886939114,0.17733943,80519.0,80516.0,0.012419]
[1741886939360,0.17733943,80519.0,80509.0,0.01242]
[1741886939599,0.248398,80516.0,80511.0,0.260831]
[1741886939809,0.248391,80518.0,80512.0,0.01242]
[1741886940010,0.2484,80516.0,80512.0,0.005]
[1741886940272,0.2484,80516.0,80509.0,0.260836]
[1741886940273,0.02253536,80517.0,80510.0,0.248415]
[1741886940411,0.02253536,80517.0,80513.0,0.260824]
[1741886940619,0.02253536,80517.0,80511.0,0.24841]
[1741886940841,0.248397,80516.0,80511.0,0.24841]
[1741886941060,0.24841,80512.0,80506.0,0.012421]
[1741886941238,0.248416,80511.0,80507.0,0.11970099]
[1741886941438,0.0001687,80516.0,80514.0,0.248402]
[1741886941664,0.0001687,80516.0,80512.0,0.248409]
[1741886941863,0.248413,80511.0,80507.0,0.11970099]
[1741886942065,0.248411,80512.0,80495.0,0.012423]
[1741886942066,0.24844,80503.0,80495.0,0.012423]
[1741886942268,0.01242,80510.0,80489.0,0.78872]
[1741886942269,0.012422,80501.0,80489.0,0.78872]
[1741886942466,0.0495,80510.0,80503.0,0.248437]
[1741886942641,0.012421,80503.0,80474.0,0.01253194]
[1741886942852,0.248468,80494.0,80488.0,0.38094339]
[1741886943043,0.248447,80500.0,80488.0,0.38094339]
[1741886943044,0.24845,80499.0,80493.0,0.012423]
[1741886943265,0.248456,80498.0,80493.0,0.260888]
[1741886943469,0.248447,80500.0,80489.0,0.006]
[1741886943668,0.248458,80497.0,80489.0,0.248478]
[1741886943899,0.01129374,80499.0,80495.0,0.012423]
[1741886944090,0.05867493,80496.0,80495.0,0.012423]
[1741886944244,0.05867493,80496.0,80495.0,0.260885]
[1741886944450,0.05867493,80496.0,80493.0,0.001]
[1741886944647,0.05867493,80496.0,80493.0,0.013423]
[1741886944891,0.06996867,80496.0,80495.0,0.012423]
[1741886945091,0.06996867,80496.0,80495.0,0.13212399]
[1741886945296,0.06996867,80496.0,80495.0,0.13312399]
[1741886946007,0.06996867,80496.0,80495.0,0.44766484]
[1741886946468,0.05867493,80496.0,80495.0,0.45266484]
[1741886946683,0.0001687,80516.0,80515.0,0.01242]
[1741886946887,0.0001687,80516.0,80515.0,0.26082]
[1741886947100,0.0001687,80516.0,80515.0,0.68052099]
[1741886947286,0.0001687,80516.0,80515.0,0.69506184]
[1741886947507,7e-07,80516.0,80515.0,3.05898184]
[1741886947741,7e-07,80516.0,80515.0,3.10438184]
[1741886947932,7e-07,80516.0,80515.0,3.1167162]
[1741886948076,7e-07,80516.0,80515.0,3.1207162]
[1741886949047,7e-07,80516.0,80515.0,3.1757162]
[1741886949263,0.0003378,80530.0,80529.0,0.560774]
[1741886949436,0.0003378,80530.0,80529.0,0.85977584]
[1741886950501,0.0003378,80530.0,80529.0,0.70101584]
[1741886950653,0.0003378,80530.0,80529.0,0.86569584]
[1741886950853,0.0003378,80530.0,80529.0,0.85969584]
[1741886951233,0.0003378,80530.0,80529.0,0.84515499]
[1741886951658,0.0003378,80530.0,80529.0,0.85115499]
[1741886952063,8e-07,80530.0,80529.0,0.87169584]
[1741886952266,5e-07,80533.0,80532.0,0.57530585]
[1741886952502,5e-07,80533.0,80532.0,0.69500684]
[1741886953559,0.248283,80554.0,80548.0,0.3]
[1741886953759,0.005,80586.0,80535.0,0.012416]
[1741886953760,0.012414,80552.0,80535.0,0.012416]
[1741886953959,0.248324,80540.0,80530.0,0.16572]
[1741886954158,0.248317,80542.0,80534.0,0.248342]
[1741886954364,0.248324,80540.0,80535.0,0.248336]
[1741886954565,0.248324,80540.0,80533.0,0.13211799]
[1741886954784,0.012414,80550.0,80529.0,0.005]
[1741886954785,0.248352,80531.0,80529.0,0.005]
[1741886954983,0.248351,80532.0,80525.0,0.260787]
[1741886955182,0.012417,80531.0,80512.0,0.11970099]
[1741886955389,0.012417,80530.0,80512.0,0.13212099]
[1741886955588,0.02472749,80531.0,80511.0,0.0003372]
[1741886955589,0.01231049,80531.0,80513.0,0.11970099]
[1741886955797,0.02276158,80530.0,80519.0,0.012419]
[1741886955977,0.02276158,80530.0,80526.0,0.012418]
[1741886956174,0.02276158,80530.0,80518.0,0.012419]
[1741886956678,0.24838,80522.0,80516.0,0.012419]
[1741886956873,0.012417,80529.0,80514.0,0.3]
[1741886957155,0.2484,80516.0,80514.0,0.11970099]
[1741886957312,0.2484,80516.0,80510.0,0.01242]
[1741886957671,0.248367,80526.0,80520.0,0.012419]
[1741886957858,0.248367,80526.0,80519.0,0.262806]
[1741886958148,0.248373,80524.0,80512.0,0.36811099]
[1741886958354,0.012418,80528.0,80514.0,0.251403]
[1741886958554,0.248379,80524.0,80514.0,0.12270099]
[1741886958758,0.012418,80528.0,80514.0,0.12270099]
[1741886958958,0.248386,80520.0,80514.0,0.38352299]
[1741886959159,0.248364,80527.0,80521.0,0.248382]
[1741886959305,0.248369,80526.0,80520.0,0.012419]
[1741886959886,0.24836,80529.0,80524.0,0.248373]
[1741886960164,0.02276831,80525.0,80521.0,0.012419]
[1741886960360,0.02276831,80525.0,80524.0,0.012418]
[1741886961121,0.02276831,80525.0,80524.0,0.013418]
[1741886961321,0.02276831,80525.0,80524.0,0.13311899]
[1741886961524,0.02276831,80525.0,80524.0,0.11970099]
[1741886961728,0.02276831,80525.0,80524.0,0.13211899]
[1741886962335,0.03415584,80525.0,80521.0,0.003]
[1741886962555,0.03415584,80525.0,80523.0,0.260793]
[1741886962961,0.03415584,80525.0,80524.0,0.017418]
[1741886963178,0.01138753,80525.0,80524.0,0.017418]
[1741886963381,0.01138753,80525.0,80524.0,0.015418]
[1741886963557,0.01138753,80525.0,80524.0,0.012418]
[1741886963758,0.01945098,80528.0,80527.0,0.312418]
[1741886963961,0.1306,80553.0,80551.0,0.248287]
[1741886964161,0.0683284,80559.0,80555.0,0.012413]
[1741886964385,0.0466,80568.0,80558.0,0.012413]
[1741886964591,0.248269,80558.0,80552.0,0.260698]
[1741886964739,0.248269,80558.0,80553.0,0.260694]
[1741886964945,0.248274,80556.0,80551.0,0.260701]
[1741886965205,0.248274,80556.0,80549.0,0.248294]
[1741886965561,0.248267,80559.0,80553.0,0.248283]
[1741886965761,0.248267,80559.0,80552.0,0.012414]
[1741886965762,0.0001685,80560.0,80559.0,0.260678]
[1741886966785,0.0001685,80560.0,80556.0,0.260686]
[1741886966997,0.0001685,80560.0,80549.0,0.3]
[1741886967203,0.248287,80552.0,80549.0,0.3]
[1741886967406,0.0001685,80560.0,80544.0,0.012415]
[1741886967407,0.248301,80548.0,80544.0,0.3]
[1741886967607,0.248301,80548.0,80546.0,0.3]
[1741886967810,0.248301,80548.0,80547.0,0.41970099]
[1741886968010,0.248301,80548.0,80547.0,0.3]
[1741886968212,0.248289,80551.0,80536.0,0.012416]
[1741886968387,0.01944553,80549.0,80539.0,0.248326]
[1741886968591,0.01944553,80549.0,80540.0,0.012416]
[1741886969029,0.01944553,80549.0,80547.0,0.004]
[1741886969030,0.248299,80548.0,80547.0,0.004]
[1741886969360,0.26774153,80549.0,80547.0,0.004]
[1741886969575,0.01944553,80549.0,80548.0,0.260713]
[1741886969748,0.01944553,80549.0,80547.0,0.004]
[1741886970308,0.01944553,80549.0,80545.0,0.248306]
[1741886970506,0.01944553,80549.0,80545.0,0.012415]
[1741886970708,0.248258,80562.0,80556.0,0.248271]
[1741886970937,0.2484305,80560.0,80556.0,0.260684]
[1741886971112,0.248271,80558.0,80551.0,0.260701]
[1741886971501,0.248265,80559.0,80554.0,0.260692]
[1741886971649,0.248265,80559.0,80552.0,0.248286]
[1741886971861,0.248275,80556.0,80551.0,0.012414]
[1741886972069,0.01961324,80560.0,80554.0,0.012414]
[1741886972301,0.01961324,80560.0,80557.0,0.260684]
[1741886972513,0.01961324,80560.0,80559.0,0.260678]
[1741886972924,0.0001685,80560.0,80559.0,0.260678]
[1741886973549,0.0001685,80560.0,80557.0,0.260684]
[1741886973767,0.0001685,80560.0,80559.0,0.005]
[1741886973949,0.0001685,80560.0,80559.0,0.017413]
[1741886974162,0.0001685,80560.0,80559.0,0.012413]
[1741886974382,0.0001685,80560.0,80559.0,0.016413]
[1741886975499,0.0001685,80560.0,80559.0,0.021413]
[1741886975907,0.0001685,80560.0,80559.0,0.4420972]
[1741886976241,0.0001685,80560.0,80559.0,0.44111399]
[1741886976576,0.0001685,80560.0,80559.0,0.43711399]
[1741886976776,0.0001685,80560.0,80559.0,0.43211399]
[1741886976981,0.0001685,80560.0,80559.0,0.43811399]
[1741886977384,0.0001685,80560.0,80559.0,0.44411399]
[1741886978001,0.0001685,80560.0,80559.0,0.324413]
[1741886978201,0.0001685,80560.0,80559.0,0.024413]
[1741886978848,0.0001685,80560.0,80559.0,0.14411399]
[1741886979055,0.0001685,80560.0,80559.0,0.14509692]
[1741886979496,0.0001685,80560.0,80559.0,0.14411399]
[1741886980346,0.0001685,80560.0,80559.0,0.13909692]
[1741886980552,0.0001685,80560.0,80559.0,0.13611399]
[1741886981047,0.0001685,80560.0,80559.0,0.13711399]
[1741886981408,0.0001685,80560.0,80559.0,0.13211399]
[1741886981903,0.0001685,80560.0,80559.0,0.13711399]
[1741886982084,0.0001685,80560.0,80559.0,0.13211399]
[1741886982286,0.0001685,80560.0,80559.0,0.13811399]
[1741886983323,0.0001685,80560.0,80559.0,0.13909692]
[1741886983502,0.0001685,80560.0,80559.0,0.14409692]
[1741886983708,0.0001685,80560.0,80559.0,1.93711399]
[1741886983909,0.0001685,80560.0,80559.0,1.92470099]
[1741886984113,0.2484305,80560.0,80559.0,0.011]
[1741886984314,0.2484305,80560.0,80559.0,0.006]
[1741886984495,0.24829,80551.0,80547.0,0.3003376]
[1741886984701,0.248292,80551.0,80549.0,0.3]
[1741886985015,0.248283,80553.0,80547.0,0.2486396]
[1741886985185,0.248269,80558.0,80548.0,0.012414]
[1741886985429,0.24827,80558.0,80552.0,0.260699]
[1741886985732,0.02281802,80557.0,80552.0,0.012414]
[1741886986002,0.248278,80555.0,80550.0,0.260706]
[1741886986197,0.01141001,80556.0,80550.0,0.260706]
[1741886986440,0.01141001,80556.0,80553.0,0.248283]
[1741886986644,0.01141001,80556.0,80553.0,0.260697]
[1741886986846,0.01141001,80556.0,80550.0,0.012414]
[1741886986978,0.02281802,80555.0,80552.0,0.2607]
[1741886987182,0.03422803,80555.0,80552.0,0.012414]
[1741886987399,0.03422803,80555.0,80552.0,0.266697]
[1741886987586,0.03422803,80555.0,80553.0,0.012414]
[1741886987804,0.03422803,80555.0,80554.0,0.260694]
[1741886988357,0.01141001,80555.0,80554.0,0.260694]
[1741886988683,0.248274,80556.0,80553.0,0.11970099]
[1741886988934,0.248274,80556.0,80554.0,0.006]
[1741886989140,0.248268,80558.0,80554.0,0.006]
[1741886989344,0.248274,80556.0,80554.0,0.006]
[1741886989669,0.02284537,80555.0,80554.0,0.006]
[1741886990535,0.012414,80554.0,80547.0,0.0003376]
[1741886990735,0.248299,80548.0,80547.0,0.0003376]
[1741886990959,0.01944534,80556.0,80547.0,0.0127526]
[1741886991139,0.248285,80553.0,80547.0,0.0127526]
[1741886991354,0.01944534,80556.0,80547.0,0.0127526]
[1741886991355,0.24828,80554.0,80547.0,0.0003376]
[1741886991560,0.248295,80550.0,80547.0,0.0003376]
[1741886991983,0.248295,80550.0,80547.0,0.0063376]
[1741886992588,0.248295,80550.0,80547.0,0.0123376]
[1741886992788,0.248299,80548.0,80547.0,0.0123376]
[1741886993680,0.260713,80548.0,80547.0,1.5063376]
[1741886993880,0.260713,80548.0,80547.0,1.5003376]
[1741886994101,0.248299,80548.0,80547.0,1.5063376]
[1741886994304,0.260713,80548.0,80547.0,1.5123376]
[1741886994506,0.26772034,80556.0,80547.0,1.5003376]
[1741886994726,0.02290899,80548.0,80547.0,1.5003376]
[1741886994936,0.03436368,80548.0,80547.0,1.5063376]
[1741886995141,0.03436368,80548.0,80547.0,1.5003376]
[1741886995444,0.03436368,80548.0,80547.0,1.5063376]
[1741886996062,0.04677768,80548.0,80547.0,0.0063376]
[1741886996431,0.03436368,80548.0,80547.0,0.0093376]
[1741886997278,0.28266268,80548.0,80547.0,0.0093376]
[1741886997777,0.28266268,80548.0,80547.0,0.0033376]
[1741886997975,0.03436368,80548.0,80547.0,0.0063376]
[1741886998180,0.03436368,80548.0,80547.0,0.2670546]
[1741886998522,0.03436368,80548.0,80547.0,0.0063376]
[1741886998523,0.03419921,80548.0,80547.0,0.0063376]
[1741887000101,0.04661321,80548.0,80547.0,0.0063376]
[1741887000264,0.2453142,80548.0,80547.0,0.0063376]
[1741887000465,0.26082,80515.0,80511.0,0.0003372]
[1741887000813,0.2484,80515.0,80511.0,0.0003372]
[1741887000965,0.248397,80517.0,80511.0,0.0003372]
[1741887001374,0.2484,80515.0,80511.0,0.0003372]
[1741887002072,0.01269816,80515.0,80514.0,0.012757]
[1741887002277,0.01145469,80515.0,80514.0,0.264161]
[1741887002616,0.01145469,80515.0,80514.0,0.000337]
[1741887002805,0.01145469,80515.0,80514.0,0.008337]
[1741887003348,0.25985469,80515.0,80514.0,0.008337]
[1741887004136,0.25985469,80515.0,80514.0,0.004337]
[1741887004346,0.01145469,80515.0,80514.0,0.016757]
[1741887004551,0.01145469,80515.0,80514.0,0.43944318]
[1741887004760,0.01145469,80515.0,80514.0,0.45299884]
[1741887004970,0.1608,80556.0,80546.0,0.012415]
[1741887005172,0.0819,80557.0,80551.0,0.260702]
[1741887005373,0.01232844,80558.0,80557.0,0.260684]
[1741887005518,0.01232844,80558.0,80548.0,0.012414]
[1741887005519,0.01232844,80558.0,80550.0,0.248292]
[1741887005715,0.01232844,80558.0,80551.0,0.11970099]
[1741887006000,0.248271,80557.0,80551.0,0.11970099]
[1741887006202,0.248277,80556.0,80551.0,0.11970099]
[1741887006362,0.248271,80557.0,80551.0,0.11970099]
[1741887006535,0.0365079,80556.0,80543.0,0.3]
[1741887006737,0.0489209,80556.0,80543.0,0.560728]
[1741887006950,0.248295,80550.0,80543.0,0.260728]
[1741887007145,0.248302,80547.0,80541.0,0.012416]
[1741887007362,0.0365079,80556.0,80546.0,0.012415]
[1741887007577,0.0365079,80556.0,80555.0,0.012413]
[1741887007791,0.0365079,80556.0,80555.0,0.13211399]
[1741887008193,0.14574207,80560.0,80558.0,0.012413]
[1741887008459,0.14574207,80560.0,80558.0,0.260679]
[1741887008735,0.14574207,80560.0,80557.0,0.260681]
[1741887008937,0.14574207,80560.0,80559.0,0.260678]
[1741887009145,0.0001685,80560.0,80559.0,0.260678]
[1741887009543,0.0001685,80560.0,80557.0,0.11970099]
[1741887009770,0.01826025,80559.0,80558.0,0.001]
[1741887010045,0.01826025,80559.0,80557.0,0.11970099]
[1741887010249,0.07422942,80559.0,80557.0,0.11970099]
[1741887010451,0.07422942,80559.0,80558.0,0.260681]
[1741887010804,0.07422942,80559.0,80557.0,0.36796899]
[1741887011124,0.07422942,80559.0,80558.0,0.012413]
[1741887011325,0.09705914,80559.0,80558.0,0.012413]
[1741887011524,0.09705914,80559.0,80558.0,0.13211399]
[1741887011734,0.07879889,80559.0,80558.0,0.13211399]
[1741887011947,0.07879889,80559.0,80558.0,0.43211399]
[1741887012112,0.05935515,80559.0,80558.0,0.43211399]
[1741887012689,0.05935515,80559.0,80558.0,0.41970099]
[1741887012890,0.0001685,80560.0,80558.0,0.004]
[1741887013106,0.0001685,80560.0,80559.0,0.11970099]
[1741887013241,0.0001685,80560.0,80559.0,0.133097]
[1741887013631,5e-07,80560.0,80559.0,0.44763785]
[1741887013886,5e-07,80560.0,80559.0,0.44665484]
[1741887014199,5e-07,80560.0,80559.0,0.52955484]
[1741887014610,5e-07,80560.0,80559.0,2.0588229]
[1741887015490,2e-07,80570.0,80569.0,0.560645]
[1741887015724,9e-07,80577.0,80576.0,0.57516285]
[1741887015871,9e-07,80577.0,80576.0,1.72492384]
[1741887016255,9e-07,80577.0,80576.0,1.72992384]
[1741887016489,7e-07,80597.0,80596.0,0.62219885]
[1741887016690,7e-07,80597.0,80596.0,0.90249984]
[1741887017307,6e-07,80609.0,80608.0,0.560519]
[1741887017513,4.1e-07,80612.0,80611.0,0.548105]
[1741887017744,0.0004,80629.0,80628.0,0.560454]
[1741887017984,0.0004,80629.0,80628.0,0.68015499]
[1741887018389,0.0004,80629.0,80628.0,0.43210299]
[1741887018594,0.0004,80629.0,80613.0,0.012404]
[1741887018804,0.248055,80627.0,80619.0,0.3]
[1741887019024,0.248052,80629.0,80622.0,0.012403]
[1741887019590,0.248052,80629.0,80628.0,0.002]
[1741887019856,0.01942736,80640.0,80633.0,0.012401]
[1741887020064,0.248026,80637.0,80635.0,0.3]
[1741887020268,0.0001689,80641.0,80629.0,0.36774999]
[1741887020439,0.0001689,80641.0,80632.0,0.012402]
[1741887020664,0.248029,80636.0,80632.0,0.3]
[1741887020865,0.0001689,80641.0,80630.0,0.3]
[1741887021068,0.248037,80633.0,80630.0,0.3]
[1741887021269,0.248037,80633.0,80629.0,0.11970099]
[1741887021404,0.248021,80639.0,80633.0,0.012401]
[1741887021587,0.25926463,80640.0,80633.0,0.012401]
[1741887021787,0.248025,80637.0,80629.0,0.11970099]
[1741887022030,0.248036,80634.0,80632.0,0.002]
[1741887022466,0.248046,80630.0,80629.0,0.11970099]
[1741887023122,0.248037,80633.0,80629.0,0.11970099]
[1741887023323,0.01942519,80636.0,80632.0,0.001]
[1741887023646,0.248031,80635.0,80629.0,0.13210299]
[1741887024157,0.01942519,80636.0,80635.0,0.260432]
[1741887024354,0.01942519,80636.0,80635.0,0.38013299]
[1741887024759,0.01942519,80636.0,80635.0,0.68013299]
[1741887024971,0.247957,80660.0,80640.0,0.260415]
[1741887025199,0.247957,80660.0,80640.0,0.38011599]
[1741887025415,0.247985,80650.0,80640.0,0.38011599]
[1741887026010,0.247973,80654.0,80640.0,0.38011599]
[1741887026212,0.247979,80652.0,80640.0,0.38011599]
[1741887026431,0.012397,80659.0,80640.0,0.38011599]
[1741887026432,0.247949,80662.0,80640.0,0.68011599]
[1741887026607,0.247954,80660.0,80640.0,0.68011599]
[1741887026823,0.247954,80660.0,80640.0,0.68111599]
[1741887027027,0.012398,80653.0,80640.0,0.42070099]
[1741887027226,0.2481809,80641.0,80640.0,0.001]
[1741887027586,0.2605809,80641.0,80640.0,0.001]
[1741887027787,0.2605809,80641.0,80640.0,0.002]